bitfinex-derivatives/quotes_BTCF0:USTF0_20251214
["timestamp","ask_amount","ask_price","bid_price","bid_amount"]
[1765741379718,0.05864934,88624.0,88623.0,0.4320517]
[1765741380820,0.00216934,88624.0,88623.0,0.4320517]
[1765741381024,0.00016934,88624.0,88623.0,0.4320517]
[1765741381225,0.05664934,88624.0,88623.0,0.4310517]
[1765741381827,0.05764934,88624.0,88623.0,0.4300517]
[1765741382426,0.05764934,88624.0,88623.0,0.4290517]
[1765741383517,0.05664934,88624.0,88623.0,0.4290517]
[1765741383718,0.05864934,88624.0,88623.0,0.4300517]
[1765741385927,0.00216934,88624.0,88623.0,0.4300517]
[1765741386826,0.00116934,88624.0,88623.0,0.4290517]
[1765741387628,0.05648,88638.0,88637.0,0.0686299]
[1765741387932,0.08456491,88638.0,88637.0,0.0686299]
[1765741388321,0.05648,88638.0,88637.0,0.0686299]
[1765741390124,0.05748,88638.0,88637.0,0.0686299]
[1765741390829,0.05648,88638.0,88637.0,0.0686299]
[1765741391030,0.05648,88638.0,88637.0,0.0706299]
[1765741391229,0.00016923,88646.0,88645.0,0.0849789]
[1765741391425,0.05664923,88646.0,88645.0,0.0849789]
[1765741392729,0.05664923,88646.0,88645.0,0.0686289]
[1765741393329,0.05664923,88646.0,88645.0,0.0696289]
[1765741393730,0.05664923,88646.0,88645.0,0.0706289]
[1765741394028,0.05764923,88646.0,88645.0,0.0706289]
[1765741394234,0.05764923,88646.0,88645.0,0.0696289]
[1765741394827,0.00016923,88646.0,88645.0,0.0686289]
[1765741395135,0.00016923,88646.0,88645.0,0.0696289]
[1765741395136,0.00116923,88646.0,88645.0,0.0696289]
[1765741396134,0.02879923,88646.0,88645.0,0.0696289]
[1765741396333,0.02779923,88646.0,88645.0,0.0686289]
[1765741396534,0.02879923,88646.0,88645.0,0.0686289]
[1765741397034,0.02879923,88646.0,88645.0,0.0696289]
[1765741397338,0.02779923,88646.0,88645.0,0.0706289]
[1765741397632,0.02779923,88646.0,88645.0,0.0696289]
[1765741397837,0.00016923,88646.0,88645.0,0.0706289]
[1765741398033,0.00016923,88646.0,88645.0,0.0696289]
[1765741398240,0.00116923,88646.0,88645.0,0.0706289]
[1765741399244,0.05648,88665.0,88664.0,0.0686265]
[1765741399432,0.08452476,88665.0,88664.0,0.0686265]
[1765741399636,0.41728,88675.0,88674.0,0.0686252]
[1765741399833,0.44532624,88675.0,88674.0,0.0686252]
[1765741400634,0.41728,88675.0,88674.0,0.0686252]
[1765741401042,0.42628,88675.0,88674.0,0.0696252]
[1765741401533,0.42228,88675.0,88674.0,0.0696252]
[1765741401936,0.06148,88675.0,88674.0,0.0696252]
[1765741402143,0.06148,88675.0,88674.0,0.0859752]
[1765741402842,0.05748,88675.0,88674.0,0.0849752]
[1765741403637,0.05648,88675.0,88674.0,0.0849752]
[1765741403843,0.05648,88675.0,88674.0,0.0869752]
[1765741404047,0.05664923,88683.0,88682.0,0.0686242]
[1765741405141,0.08467399,88683.0,88682.0,0.0686242]
[1765741405331,0.05664923,88683.0,88682.0,0.0686242]
[1765741405946,0.08514126,88683.0,88682.0,0.0686242]
[1765741406340,0.08614126,88683.0,88682.0,0.0686242]
[1765741406935,0.08514126,88683.0,88682.0,0.0686242]
[1765741407137,0.08614126,88683.0,88682.0,0.0686242]
[1765741407841,0.08514126,88683.0,88682.0,0.0686242]
[1765741408140,0.08614126,88683.0,88682.0,0.0686242]
[1765741409347,0.08514126,88683.0,88682.0,0.0686242]
[1765741409546,0.08714126,88683.0,88682.0,0.0696242]
[1765741409848,0.08714126,88683.0,88682.0,0.0122742]
[1765741410245,0.08714126,88683.0,88682.0,0.0112742]
[1765741410246,0.08614126,88683.0,88682.0,0.0112742]
[1765741410642,0.0581,88672.0,88671.0,0.4017456]
[1765741410842,0.0581,88672.0,88671.0,0.3720756]
[1765741411351,0.08659099,88672.0,88671.0,0.3720756]
[1765741412547,0.08659099,88672.0,88671.0,0.3730756]
[1765741412750,0.08859099,88672.0,88671.0,0.3740756]
[1765741412937,0.08859099,88672.0,88671.0,0.3730756]
[1765741413132,0.08959099,88672.0,88671.0,0.3730756]
[1765741413337,0.0581,88667.0,88666.0,0.06905543]
[1765741413542,0.08659798,88667.0,88666.0,0.01144543]
[1765741413742,0.08659798,88667.0,88666.0,0.06905543]
[1765741415535,0.08759798,88667.0,88666.0,0.06905543]
[1765741416249,0.08859798,88667.0,88666.0,0.07005543]
[1765741417147,0.08959798,88667.0,88666.0,0.07005543]
[1765741417541,0.08959798,88667.0,88666.0,0.04211543]
[1765741417860,0.08959798,88667.0,88666.0,0.00116923]
[1765741418451,0.08859798,88667.0,88666.0,0.00116923]
[1765741418652,0.08959798,88667.0,88666.0,0.00116923]
[1765741419049,0.08859798,88667.0,88666.0,0.00116923]
[1765741419257,0.08959798,88667.0,88666.0,0.00116923]
[1765741420153,0.08859798,88667.0,88666.0,0.00116923]
[1765741420345,0.08859798,88667.0,88666.0,0.00016923]
[1765741420652,0.09159798,88667.0,88666.0,0.03083923]
[1765741421455,0.09159798,88667.0,88666.0,0.00116923]
[1765741421656,0.08959798,88667.0,88666.0,0.00116923]
[1765741421853,0.09159798,88667.0,88666.0,0.00116923]
[1765741422051,0.08859798,88667.0,88666.0,0.00016923]
[1765741422247,0.09159798,88667.0,88666.0,0.00116923]
[1765741422956,0.08959798,88667.0,88666.0,0.00116923]
[1765741423156,0.09159798,88667.0,88666.0,0.00116923]
[1765741424758,0.08959798,88667.0,88666.0,0.00116923]
[1765741425054,0.08859798,88667.0,88666.0,0.00016923]
[1765741425359,0.08959798,88667.0,88666.0,0.00116923]
[1765741425552,0.09159798,88667.0,88666.0,0.00116923]
[1765741426459,0.08959798,88667.0,88666.0,0.00116923]
[1765741426660,0.09159798,88667.0,88666.0,0.00116923]
[1765741428459,0.08959798,88667.0,88666.0,0.00116923]
[1765741428760,0.09159798,88667.0,88666.0,0.00116923]
[1765741429056,0.08959798,88667.0,88666.0,0.00116923]
[1765741429263,0.09159798,88667.0,88666.0,0.00116923]
[1765741430166,0.09159798,88667.0,88666.0,0.05877923]
[1765741430351,0.09159798,88667.0,88666.0,0.03083923]
[1765741430553,0.09159798,88667.0,88666.0,0.00116923]
[1765741431360,0.08859798,88667.0,88666.0,0.00016923]
[1765741431562,0.09159798,88667.0,88666.0,0.00116923]
[1765741432064,0.08959798,88667.0,88666.0,0.00116923]
[1765741432265,0.09159798,88667.0,88666.0,0.00116923]
[1765741434359,0.08859798,88667.0,88666.0,0.00016923]
[1765741434564,0.09159798,88667.0,88666.0,0.00116923]
[1765741436663,0.05983,88654.0,88650.0,0.13246611]
[1765741436869,0.05983,88654.0,88653.0,0.41789]
[1765741437168,0.05983,88654.0,88653.0,0.42947529]
[1765741437364,0.05983,88654.0,88653.0,0.44075319]
[1765741437964,0.05983,88654.0,88653.0,0.4291679]
[1765741438164,0.05983,88654.0,88653.0,0.41789]
[1765741438369,0.06083,88654.0,88653.0,0.41789]
[1765741439070,0.06183,88654.0,88653.0,0.41889]
[1765741439468,0.06283,88654.0,88653.0,0.41889]
[1765741439870,0.06183,88654.0,88653.0,0.41889]
[1765741440070,0.06383,88654.0,88653.0,0.41889]
[1765741440467,0.06383,88654.0,88653.0,0.41789]
[1765741440658,0.06483,88654.0,88653.0,0.41889]
[1765741441868,0.06383,88654.0,88653.0,0.3618]
[1765741442061,0.0686587,88646.0,88645.0,0.00016923]
[1765741442263,0.0686587,88646.0,88631.0,0.3608]
[1765741442264,0.05738,88632.0,88631.0,0.05709]
[1765741442466,0.01518,88635.0,88616.0,0.118686]
[1765741442467,0.05738,88628.0,88627.0,0.02720091]
[1765741442673,0.068661,88628.0,88627.0,0.02720091]
[1765741442971,0.068661,88628.0,88627.0,0.05719091]
[1765741444665,0.071661,88628.0,88627.0,0.05819091]
[1765741445066,0.073661,88628.0,88627.0,0.05819091]
[1765741445679,0.05738,88623.0,88619.0,0.00016923]
[1765741445970,0.07523,88620.0,88619.0,0.00016923]
[1765741446171,0.05738,88620.0,88619.0,0.05725923]
[1765741446675,0.05748741,88620.0,88619.0,0.05725923]
[1765741447471,0.05748741,88620.0,88619.0,0.05825923]
[1765741448174,0.05748741,88620.0,88619.0,0.05725923]
[1765741448378,0.06048741,88620.0,88619.0,0.05825923]
[1765741448975,0.00410741,88620.0,88619.0,0.05825923]
[1765741449777,0.06148741,88620.0,88619.0,0.05825923]
[1765741450666,0.05848741,88620.0,88619.0,0.05725923]
[1765741450872,0.00310741,88620.0,88619.0,0.05825923]
[1765741451274,0.05948741,88620.0,88619.0,0.05825923]
[1765741451476,0.06048741,88620.0,88619.0,0.05825923]
[1765741451867,0.05948741,88620.0,88619.0,0.05825923]
[1765741453070,0.05848741,88620.0,88619.0,0.05825923]
[1765741456978,0.05748741,88620.0,88619.0,0.05725923]
[1765741457180,0.05848741,88620.0,88619.0,0.05825923]
[1765741458581,0.02862741,88620.0,88619.0,0.05825923]
[1765741459184,0.00110741,88620.0,88619.0,0.05825923]
[1765741459382,0.05848741,88620.0,88619.0,0.05825923]
[1765741459581,0.00110741,88620.0,88619.0,0.05825923]
[1765741460276,0.02862741,88620.0,88619.0,0.05825923]
[1765741461379,0.05848741,88620.0,88619.0,0.05825923]
[1765741462170,0.05748741,88620.0,88619.0,0.05725923]
[1765741462366,0.05848741,88620.0,88619.0,0.05925923]
[1765741471588,0.08698627,88620.0,88619.0,0.05925923]
[1765741472192,0.05848741,88620.0,88619.0,0.05925923]
[1765741472394,0.08699935,88620.0,88619.0,0.05925923]
[1765741484790,0.05713935,88620.0,88619.0,0.05925923]
[1765741484997,0.00110741,88620.0,88619.0,0.05925923]
[1765741486994,0.02919923,88636.0,88635.0,0.0703601]
[1765741487201,0.08488075,88636.0,88635.0,0.0703601]
[1765741487698,0.08487817,88636.0,88635.0,0.0703601]
[1765741488205,0.08587817,88636.0,88635.0,0.0703601]
[1765741488811,0.08587817,88636.0,88635.0,0.0713601]
[1765741489201,0.05867817,88636.0,88635.0,0.0713601]
[1765741489505,0.03019923,88636.0,88635.0,0.0713601]
[1765741489705,0.05739923,88636.0,88635.0,0.0713601]
[1765741489902,0.05739923,88636.0,88635.0,0.4321601]
[1765741490706,0.03019923,88636.0,88635.0,0.4321601]
[1765741490900,0.02919923,88636.0,88635.0,0.4311601]
[1765741491094,0.03019923,88636.0,88635.0,0.4321601]
[1765741491505,0.05739923,88636.0,88635.0,0.4321601]
[1765741491909,0.05739923,88636.0,88635.0,0.4341601]
[1765741493706,0.02919923,88636.0,88635.0,0.4331601]
[1765741494011,0.03019923,88636.0,88635.0,0.4341601]
[1765741494709,0.00116923,88636.0,88635.0,0.4341601]
[1765741496812,0.00116923,88636.0,88635.0,0.4321601]
[1765741497009,0.00116923,88636.0,88635.0,0.4341601]
[1765741497398,0.00116923,88636.0,88635.0,0.4321601]
[1765741497599,0.00116923,88636.0,88635.0,0.4341601]
[1765741500010,0.00116923,88636.0,88635.0,0.4321601]
[1765741500211,0.00116923,88636.0,88635.0,0.4341601]
[1765741500512,0.0578,88652.0,88651.0,0.0695981]
[1765741501200,0.07091,88636.0,88635.0,0.3638]
[1765741501815,0.07441,88628.0,88627.0,0.02868923]
[1765741502108,0.0578,88628.0,88627.0,0.05848923]
[1765741504517,0.0588,88628.0,88627.0,0.05848923]
[1765741506206,0.0588,88628.0,88627.0,0.05948923]
[1765741506611,0.0588,88628.0,88627.0,0.05848923]
[1765741507219,0.0588,88628.0,88627.0,0.05948923]
[1765741508014,0.0588,88628.0,88627.0,0.06048923]
[1765741509616,0.0588,88628.0,88627.0,0.05948923]
[1765741510716,0.0578,88628.0,88627.0,0.05848923]
[1765741510916,0.0588,88628.0,88627.0,0.05948923]
[1765741511714,0.0578,88628.0,88627.0,0.05848923]
[1765741511914,0.0588,88628.0,88627.0,0.05948923]
[1765741513223,0.0588,88628.0,88627.0,0.06048923]
[1765741513813,0.0588,88628.0,88627.0,0.05948923]
[1765741514515,0.0578,88628.0,88627.0,0.05948923]
[1765741514716,0.0588,88628.0,88627.0,0.05948923]
[1765741518527,0.07665,88628.0,88627.0,0.05948923]
[1765741519025,0.07665,88628.0,88627.0,0.02968923]
[1765741519221,0.07665,88628.0,88627.0,0.05948923]
[1765741521533,0.0588,88628.0,88627.0,0.05948923]
[1765741528235,0.08729853,88628.0,88627.0,0.00116923]
[1765741528732,0.05905,88619.0,88618.0,0.0112822]
[1765741529032,0.08754853,88619.0,88618.0,0.0112822]
[1765741529733,0.08754853,88619.0,88618.0,0.0677222]
[1765741530036,0.08854853,88619.0,88618.0,0.0727222]
[1765741532324,0.06005,88619.0,88618.0,0.0727222]
[1765741536638,0.06005,88619.0,88618.0,1.0727222]
[1765741543437,0.001,88619.0,88618.0,1.0727222]
[1765741543839,0.3720806,88632.0,88629.0,0.0112808]
[1765741544136,0.41985,88632.0,88631.0,0.05644]
[1765741544736,0.46614803,88632.0,88631.0,0.05644]
[1765741544940,0.46614825,88632.0,88631.0,0.02709]
[1765741545243,0.42085,88632.0,88631.0,0.05644]
[1765741545432,0.42185,88632.0,88631.0,0.05644]
[1765741545734,0.42085,88632.0,88631.0,0.05644]
[1765741545935,0.42085,88632.0,88631.0,0.05744]
[1765741546145,0.42185,88632.0,88631.0,0.05744]
[1765741546634,0.42085,88632.0,88631.0,0.05644]
[1765741546833,0.42085,88632.0,88631.0,0.05744]
[1765741546834,0.42185,88632.0,88631.0,0.05744]
[1765741547029,0.41495461,88632.0,88631.0,0.05744]
[1765741547439,0.002,88632.0,88631.0,0.41824]
[1765741547737,0.06105,88632.0,88631.0,0.41824]
[1765741548436,0.05905,88632.0,88631.0,0.41724]
[1765741548738,0.06105,88632.0,88631.0,0.41724]
[1765741549133,0.06005,88632.0,88631.0,0.41724]
[1765741550946,0.06005,88632.0,88631.0,0.05644]
[1765741551545,0.05905,88632.0,88631.0,0.05644]
[1765741551730,0.06005,88632.0,88631.0,0.05644]
[1765741557048,0.05905,88632.0,88631.0,0.05644]
[1765741557250,0.06005,88632.0,88631.0,0.05644]
[1765741560844,0.03066,88632.0,88631.0,0.05644]
[1765741561443,0.05704,88627.0,88626.0,0.0688912]
[1765741562647,0.05704,88627.0,88626.0,0.0698912]
[1765741564253,0.05704,88627.0,88626.0,0.0708912]
[1765741574056,0.02707,88627.0,88626.0,0.0708912]
[1765741574360,0.05704,88627.0,88626.0,0.0708912]
[1765741574951,0.02707,88627.0,88626.0,0.0708912]
[1765741575150,0.05704,88627.0,88626.0,0.0708912]
[1765741577760,0.08426278,88627.0,88626.0,0.0708912]
[1765741578561,0.114627,88636.0,88635.0,0.07476]
[1765741578562,0.0683201,88636.0,88635.0,0.07476]
[1765741578752,0.09554311,88636.0,88635.0,0.07476]
[1765741579153,0.00016923,88644.0,88640.0,0.97921689]
[1765741579353,0.3925,88641.0,88640.0,0.97921689]
[1765741579663,0.4037794,88641.0,88640.0,0.97921689]
[1765741580455,0.4057794,88641.0,88640.0,0.97921689]
[1765741582065,0.4087794,88641.0,88640.0,0.98021689]
[1765741590872,0.15202739,88646.0,88645.0,0.55319826]
[1765741591272,0.17908618,88646.0,88645.0,0.55319826]
[1765741591475,0.19036488,88646.0,88645.0,0.55319826]
[1765741592176,0.19036488,88646.0,88645.0,0.55419826]
[1765741592377,0.19436488,88646.0,88645.0,0.55419826]
[1765741592677,0.19736488,88646.0,88645.0,0.55419826]
[1765741593175,0.19436488,88646.0,88645.0,0.55419826]
[1765741593378,0.19736488,88646.0,88645.0,0.55419826]
[1765741593977,0.19636488,88646.0,88645.0,0.55419826]
[1765741595879,0.19436488,88646.0,88645.0,0.55319826]
[1765741597081,0.13223492,88646.0,88645.0,0.55319826]
[1765741597376,0.13423492,88646.0,88645.0,0.55319826]
[1765741597878,0.13523492,88646.0,88645.0,0.55419826]
[1765741598678,0.13323492,88646.0,88645.0,0.55419826]
[1765741598881,0.13523492,88646.0,88645.0,0.55419826]
[1765741599378,0.3608,88655.0,88653.0,0.0689679]
[1765741599582,0.05125453,88656.0,88653.0,0.0689679]
[1765741599583,0.05040923,88654.0,88653.0,0.4297679]
[1765741600172,0.00016923,88654.0,88653.0,0.4297679]
[1765741600575,0.011277,88660.0,88659.0,0.05769]
[1765741600776,0.038377,88660.0,88659.0,0.05769]
[1765741601675,0.011277,88660.0,88659.0,0.05769]
[1765741601883,0.05546923,88668.0,88667.0,0.05769]
[1765741602090,0.06674513,88668.0,88667.0,0.05769]
[1765741602287,0.15669872,88668.0,88667.0,0.05769]
[1765741603391,0.15769872,88668.0,88667.0,0.05769]
[1765741604994,0.15969872,88668.0,88667.0,0.05769]
[1765741606693,0.06974513,88668.0,88667.0,0.05769]
[1765741607391,0.06774513,88668.0,88667.0,0.05769]
[1765741607592,0.06974513,88668.0,88667.0,0.05769]
[1765741608495,0.06874513,88668.0,88667.0,0.05769]
[1765741608698,0.06974513,88668.0,88667.0,0.05769]
[1765741610094,0.06874513,88668.0,88667.0,0.05769]
[1765741610300,0.06974513,88668.0,88667.0,0.05769]
[1765741610494,0.06774513,88668.0,88667.0,0.05769]
[1765741610701,0.05846923,88668.0,88667.0,0.05769]
[1765741611505,0.0853019,88668.0,88667.0,0.05769]
[1765741611805,0.0833019,88668.0,88667.0,0.05769]
[1765741612802,0.0280019,88668.0,88667.0,0.05769]
[1765741613002,0.00116923,88668.0,88667.0,0.05769]
[1765741613396,0.00016923,88668.0,88667.0,0.05769]
[1765741613597,0.00116923,88668.0,88667.0,0.05769]
[1765741613800,0.02826923,88668.0,88667.0,0.05769]
[1765741614306,0.02726923,88668.0,88667.0,0.05769]
[1765741614508,0.02726923,88668.0,88667.0,0.05869]
[1765741614703,0.05494923,88668.0,88667.0,0.05869]
[1765741615703,0.05494923,88668.0,88667.0,0.05769]
[1765741617605,0.05594923,88668.0,88667.0,0.05769]
[1765741617806,0.02852822,88668.0,88667.0,0.05769]
[1765741619108,0.02852822,88668.0,88667.0,0.05869]
[1765741619503,0.05134,88680.0,88679.0,0.0748845]
[1765741620510,0.05234,88680.0,88679.0,0.0748845]
[1765741620903,0.05234,88680.0,88679.0,0.06361]
[1765741621204,0.05234,88680.0,88675.0,0.3608]
[1765741621205,0.0715149,88676.0,88675.0,0.3608]
[1765741621410,0.0715154,88672.0,88667.0,0.002]
[1765741621811,0.0715154,88672.0,88666.0,0.3608]
[1765741622400,0.0745154,88672.0,88666.0,0.3608]
[1765741622808,0.0745154,88672.0,88671.0,0.06377923]
[1765741623605,0.0775154,88672.0,88671.0,0.06377923]
[1765741624008,0.0745154,88672.0,88671.0,0.06377923]
[1765741624611,0.0735154,88672.0,88671.0,0.06377923]
[1765741624811,0.0745154,88672.0,88671.0,0.06377923]
[1765741626105,0.0745154,88672.0,88671.0,0.03210923]
[1765741626308,0.0745154,88672.0,88671.0,0.00016923]
[1765741628511,0.0745154,88672.0,88671.0,0.06377923]
[1765741631518,0.10194628,88672.0,88671.0,0.06377923]
[1765741634820,0.0112747,88678.0,88676.0,0.05025]
[1765741635024,0.0112747,88678.0,88676.0,0.41105]
[1765741635418,0.0112747,88678.0,88676.0,0.44272]
[1765741635915,0.0142747,88678.0,88676.0,0.44372]
[1765741636123,0.06457,88677.0,88676.0,0.44372]
[1765741637720,0.06457,88677.0,88676.0,0.44272]
[1765741637922,0.06657,88677.0,88676.0,0.44272]
[1765741638519,0.06857,88677.0,88676.0,0.44272]
[1765741638722,0.06857,88677.0,88676.0,0.3608]
[1765741640719,0.06657,88677.0,88676.0,0.3608]
[1765741640915,0.06857,88677.0,88676.0,0.3608]
[1765741641423,0.77927325,88677.0,88676.0,0.3608]
[1765741641627,0.77927325,88677.0,88671.0,0.00016923]
[1765741641628,0.0892254,88672.0,88671.0,0.00016923]
[1765741641831,0.0892254,88672.0,88648.0,0.01831]
[1765741641832,0.06457,88653.0,88648.0,0.01831]
[1765741642032,0.0758484,88649.0,88648.0,0.08192]
[1765741644519,0.0768484,88649.0,88648.0,0.08992]
[1765741646828,0.10377772,88649.0,88648.0,0.08992]
[1765741647321,0.02792932,88649.0,88648.0,0.08992]
[1765741647629,0.10907932,88649.0,88648.0,0.45072]
[1765741651027,0.02792932,88649.0,88648.0,0.45072]
[1765741661430,0.02792932,88649.0,88648.0,0.08992]
[1765741661632,0.02792932,88649.0,88648.0,0.45072]
[1765741663541,0.001,88649.0,88648.0,0.45072]
[1765741664441,0.02799536,88649.0,88648.0,0.45072]
[1765741664640,0.001,88649.0,88648.0,0.45072]
[1765741665932,0.15917,88649.0,88648.0,0.45072]
[1765741666137,0.18616973,88649.0,88648.0,0.45072]
[1765741669044,0.18616973,88649.0,88648.0,0.08992]
[1765741674846,0.18616973,88649.0,88648.0,0.05825]
[1765741675045,0.18616973,88649.0,88648.0,0.008]
[1765741675445,0.18616973,88649.0,88648.0,0.08378]
[1765741676851,0.18616973,88649.0,88648.0,0.16147]
[1765741677652,0.18616973,88649.0,88648.0,0.07524]
[1765741677850,0.18616973,88649.0,88648.0,0.14321]
[1765741678748,0.18616973,88649.0,88648.0,0.008]
[1765741680153,0.18916973,88649.0,88648.0,0.004]
[1765741680353,0.14155,88641.0,88640.0,0.15368923]
[1765741680550,0.16854973,88641.0,88640.0,0.15368923]
[1765741681250,0.17982913,88641.0,88640.0,0.15368923]
[1765741682345,0.18182913,88641.0,88640.0,0.15368923]
[1765741683042,0.18282913,88641.0,88640.0,0.15368923]
[1765741683453,0.18182913,88641.0,88640.0,0.15368923]
[1765741683656,0.18082913,88641.0,88640.0,0.15368923]
[1765741683955,0.18182913,88641.0,88640.0,0.15368923]
[1765741684550,0.18735426,88641.0,88640.0,0.15368923]
[1765741690062,0.18635426,88641.0,88640.0,0.15368923]
[1765741690964,0.18735426,88641.0,88640.0,0.15368923]
[1765741692162,0.18635426,88641.0,88640.0,0.15368923]
[1765741692359,0.18735426,88641.0,88640.0,0.15368923]
[1765741693456,0.18635426,88641.0,88640.0,0.15368923]
[1765741693657,0.18735426,88641.0,88640.0,0.15368923]
[1765741695762,0.18635426,88641.0,88640.0,0.15368923]
[1765741696071,0.18735426,88641.0,88640.0,0.15368923]
[1765741698862,0.18635426,88641.0,88640.0,0.15368923]
[1765741699063,0.18735426,88641.0,88640.0,0.15368923]
[1765741703064,0.18635426,88641.0,88640.0,0.15368923]
[1765741705864,0.02699973,88641.0,88640.0,0.15368923]
[1765741706071,0.02799973,88641.0,88640.0,0.15368923]
[1765741706876,0.09580973,88641.0,88640.0,0.15368923]
[1765741708076,0.09480973,88641.0,88640.0,0.15368923]
[1765741708271,0.09480973,88641.0,88640.0,0.15468923]
[1765741708771,0.09480973,88641.0,88640.0,0.15368923]
[1765741708969,0.09480973,88641.0,88640.0,0.15568923]
[1765741711972,0.0112781,88651.0,88650.0,0.0112782]
[1765741712171,0.0112781,88651.0,88640.0,0.02047923]
[1765741712172,0.0112778,88654.0,88653.0,0.1415579]
[1765741712377,0.0112773,88658.0,88656.0,0.1807975]
[1765741713074,0.00557744,88661.0,88656.0,0.1807975]
[1765741713374,0.00557744,88661.0,88660.0,0.180797]
[1765741713772,0.1408262,88667.0,88666.0,0.13028]
[1765741713969,0.1408262,88667.0,88666.0,0.49108]
[1765741714474,0.08799058,88674.0,88666.0,0.49108]
[1765741714475,0.0112759,88669.0,88668.0,0.16952]
[1765741714771,0.00016923,88675.0,88674.0,0.13028]
[1765741715363,0.08070379,88698.0,88668.0,0.40004]
[1765741715364,0.06037778,88692.0,88668.0,0.3608]
[1765741715574,0.0741025,88695.0,88694.0,0.13028]
[1765741715781,0.1408225,88695.0,88694.0,0.13028]
[1765741717686,0.1428225,88695.0,88694.0,0.13028]
[1765741717985,0.1448225,88695.0,88694.0,0.13028]
[1765741718199,0.1428225,88695.0,88694.0,0.13028]
[1765741718403,0.1448225,88695.0,88694.0,0.13028]
[1765741719203,0.13355,88695.0,88694.0,0.13028]
[1765741719401,0.1448225,88695.0,88694.0,0.13028]
[1765741720903,0.1438225,88695.0,88694.0,0.13028]
[1765741721306,0.1418225,88695.0,88694.0,0.13028]
[1765741721491,0.1438225,88695.0,88694.0,0.13028]
[1765741722096,0.1418225,88695.0,88694.0,0.13028]
[1765741722294,0.1438225,88695.0,88694.0,0.13028]
[1765741724005,0.17065394,88695.0,88694.0,0.13028]
[1765741724403,0.16965394,88695.0,88694.0,0.13028]
[1765741724605,0.16865394,88695.0,88694.0,0.13028]
[1765741724804,0.16965394,88695.0,88694.0,0.13028]
[1765741725608,0.17065394,88695.0,88694.0,0.13028]
[1765741726399,0.17165394,88695.0,88694.0,0.13028]
[1765741727808,0.1418225,88695.0,88694.0,0.13028]
[1765741728008,0.1428225,88695.0,88694.0,0.13028]
[1765741728208,0.06483,88695.0,88694.0,0.13028]
[1765741728513,0.06383,88695.0,88694.0,0.13028]
[1765741728705,0.13255,88695.0,88694.0,0.13028]
[1765741728909,0.13094807,88695.0,88694.0,0.13028]
[1765741729111,0.13194807,88695.0,88694.0,0.13028]
[1765741729420,0.15676709,88695.0,88694.0,0.13028]
[1765741729612,0.15776709,88695.0,88694.0,0.13028]
[1765741729802,0.13094807,88695.0,88694.0,0.13028]
[1765741730804,0.12994807,88695.0,88694.0,0.13028]
[1765741731005,0.13094807,88695.0,88694.0,0.13028]
[1765741731204,0.15777179,88695.0,88694.0,0.13028]
[1765741733313,0.15778085,88695.0,88694.0,0.13028]
[1765741733814,0.15678085,88695.0,88694.0,0.13028]
[1765741734015,0.15778085,88695.0,88694.0,0.13028]
[1765741734413,0.15678085,88695.0,88694.0,0.13028]
[1765741734609,0.15778085,88695.0,88694.0,0.13028]
[1765741735203,0.09106085,88695.0,88694.0,0.13028]
[1765741735416,0.15838278,88695.0,88694.0,0.13028]
[1765741737018,0.15738278,88695.0,88694.0,0.13028]
[1765741737712,0.15838278,88695.0,88694.0,0.13028]
[1765741738111,0.15738278,88695.0,88694.0,0.13028]
[1765741738313,0.15838278,88695.0,88694.0,0.13028]
[1765741738713,0.15738278,88695.0,88694.0,0.13028]
[1765741738907,0.15838278,88695.0,88694.0,0.13028]
[1765741739620,0.15838278,88695.0,88694.0,0.1415526]
[1765741740821,0.15738278,88695.0,88694.0,0.1415526]
[1765741741016,0.15838278,88695.0,88694.0,0.1415526]
[1765741741621,0.15738278,88695.0,88694.0,0.1415526]
[1765741741812,0.15838278,88695.0,88694.0,0.1415526]
[1765741742409,0.15838278,88695.0,88694.0,0.13028]
[1765741742614,0.15738278,88695.0,88694.0,0.13028]
[1765741742917,0.15838278,88695.0,88694.0,0.13028]
[1765741744319,0.15938278,88695.0,88694.0,0.13028]
[1765741744924,0.15838278,88695.0,88694.0,0.13028]
[1765741745123,0.16038278,88695.0,88694.0,0.13028]
[1765741746325,0.16042434,88695.0,88694.0,0.13028]
[1765741748625,0.09022434,88695.0,88694.0,0.13028]
[1765741748814,0.14699434,88695.0,88694.0,0.13028]
[1765741749020,0.09145482,88695.0,88694.0,0.1415526]
[1765741749227,0.03087434,88695.0,88694.0,0.1415526]
[1765741750327,0.02887434,88695.0,88694.0,0.1425526]
[1765741750914,0.02687434,88695.0,88694.0,0.1425526]
[1765741751229,0.08622434,88695.0,88694.0,0.1435526]
[1765741751935,0.14299434,88695.0,88694.0,0.13228]
[1765741752124,0.20357482,88695.0,88694.0,0.13228]
[1765741752328,0.14299434,88695.0,88694.0,0.13228]
[1765741752624,0.14299434,88695.0,88694.0,0.13128]
[1765741753317,0.14499434,88695.0,88694.0,0.13028]
[1765741753517,0.11612,88688.0,88687.0,0.057]
[1765741753822,0.1273935,88687.0,88680.0,0.03924]
[1765741754016,0.15426784,88687.0,88680.0,0.03924]
[1765741754220,0.15426157,88687.0,88680.0,0.03924]
[1765741754928,0.15426157,88687.0,88676.0,0.03668]
[1765741755522,0.15426157,88687.0,88686.0,0.11620911]
[1765741756120,0.15826157,88687.0,88686.0,0.11620911]
[1765741756326,0.16026157,88687.0,88686.0,0.11620911]
[1765741756525,0.15626157,88687.0,88686.0,0.11620911]
[1765741756729,0.15926157,88687.0,88686.0,0.11620911]
[1765741756923,0.15726157,88687.0,88686.0,0.11620911]
[1765741757124,0.15726157,88687.0,88686.0,0.11720911]
[1765741757327,0.16026157,88687.0,88686.0,0.11720911]
[1765741758237,0.16026157,88687.0,88686.0,0.00116911]
[1765741758718,0.24096536,88687.0,88686.0,0.00116911]
[1765741758924,0.11612,88671.0,88670.0,0.15272]
[1765741759134,0.14298807,88671.0,88670.0,0.15272]
[1765741760231,0.15426367,88671.0,88670.0,0.15272]
[1765741761131,0.15526367,88671.0,88670.0,0.15272]
[1765741761425,0.15626367,88671.0,88670.0,0.15272]
[1765741783656,0.10436,88669.0,88668.0,0.03074]
[1765741783852,0.1156359,88668.0,88667.0,0.3608]
[1765741784051,0.14250397,88668.0,88667.0,0.3608]
[1765741784251,0.14250397,88668.0,88667.0,0.41299]
[1765741784451,0.14250397,88668.0,88667.0,0.46791]
[1765741785963,0.14350397,88668.0,88667.0,0.46791]
[1765741787160,0.14250397,88668.0,88667.0,0.46791]
[1765741787360,0.14750397,88668.0,88667.0,0.46891]
[1765741789763,0.14750397,88668.0,88667.0,0.10811]
[1765741790262,0.14550397,88668.0,88667.0,0.10711]
[1765741790466,0.14750397,88668.0,88667.0,0.10711]